Cogmind - Beta 11 @@@ ROGUE MODE // 2022.03.26 @ 12:13:07 Player: SURFACESEEKER Result: Destroyed by S-27 Virus with Autogun Performance ------------- Evolutions (4) 2000 Regions Visited (6) 1200 Robots Destroyed (50) 250 Value Destroyed (1531) 1531 Prototype IDs (3) 60 Alien Tech Used (0) 0 Bonus (0) 0 TOTAL SCORE: 5041 Bonus ------- None Cogmind --------- Core Integrity 0/850 Matter 300/300 Energy 57/100 System Corruption 0% Temperature Cool (0) Movement Core (350) Ox6 Location -6/Extension Parts ------- > --- POWER (3) -------- (None) > --- PROPULSION (5) --- (None) > --- UTILITY (5) ------ Large Storage Unit Terrain Scan Processor Core Analyzer > --- WEAPON (2) ------- (None) > --- INVENTORY (15) --- Light Fission Core Improved Cooling System Large Storage Unit Large Storage Unit Improved Terrain Scanner Improved Terrain Scanner Advanced ECM Suite Insulated Plating Insulated Plating Remote Datajack Spear Peak State ------------ > --- POWER ------------ Micro Nuclear Core Micro Nuclear Core Micro Nuclear Core > --- PROPULSION ------- Carbon-fiber Leg Carbon-fiber Leg Carbon-fiber Leg Carbon-fiber Leg Carbon-fiber Leg > --- UTILITY ---------- Improved Cooling System Large Storage Unit Terrain Scan Processor Core Analyzer Medium Reflective Plating > --- WEAPON ----------- Gauss Rifle Magnetic Acceleration Cannon > --- INVENTORY -------- Light Fission Core Carbon-fiber Leg Carbon-fiber Leg Improved Cooling System Large Storage Unit Large Storage Unit Improved Terrain Scanner Improved Terrain Scanner Advanced ECM Suite Insulated Plating Insulated Plating Pulse Rifle Heavy Laser Remote Datajack Spear [Rating: 55] Favorites ----------- Power Micro Nuclear Core Engine Deuterium Engine Power Core Micro Nuclear Core Propulsion Carbon-fiber Leg Treads Light Treads Leg Carbon-fiber Leg Wheel Compact Wheel Utility Terrain Scan Processor Device Improved Terrain Scanner Storage Large Storage Unit Processor Terrain Scan Processor Hackware Improved Hacking Suite Protection Hardened Medium Armor Plating Weapon Gauss Rifle Energy Gun Medium Laser Ballistic Gun Gauss Rifle Ballistic Cannon Light Cannon Impact Weapon Maul Piercing Weapon Spear Build | -11 -10 -9 -8 -7 -6 -6 ------- Run | Scr Mat Mat Mat Fac Fac Ext Slots Evolved 8 | . . 2 2 2 2 . Power 2 | . . . 1 . 1 . Propulsion 3 | . . 1 . 1 1 . Utility 3 | . . 1 1 1 . . Weapon . | . . . . . . . Parts Attached 114 | 6 3 4 44 27 7 23 Power 14 | 1 . 1 7 3 1 1 Engine 8 | 1 . 1 5 1 . . Core 6 | . . . 2 2 1 1 Reactor . | . . . . . . . Propulsion 35 | 2 . . 9 9 4 11 Treads 4 | 2 . . 2 . . . Leg 28 | . . . 7 9 4 8 Wheel 3 | . . . . . . 3 Hover . | . . . . . . . Flight . | . . . . . . . Utility 37 | 1 1 2 15 9 2 7 Device 17 | . 1 1 8 5 1 1 Storage 6 | 1 . . 3 2 . . Processor 2 | . . 1 . . . 1 Hackware 1 | . . . . . 1 . Protection 11 | . . . 4 2 . 5 Artifact . | . . . . . . . Weapon 28 | 2 2 1 13 6 . 4 Energy Gun 12 | 2 . . 5 3 . 2 Energy Cannon . | . . . . . . . Ballistic Gun 6 | . . . 5 . . 1 Ballistic Cannon 3 | . 2 . . . . 1 Launcher . | . . . . . . . Special Weapon . | . . . . . . . Impact Weapon 5 | . . 1 3 1 . . Slashing Weapon . | . . . . . . . Piercing Weapon 2 | . . . . 2 . . Special Melee Weapon . | . . . . . . . Unidentified Prototypes 1 | . . . 1 . . . Parts Lost 30 | . . . 8 . . 22 Power 6 | . . . 3 . . 3 Propulsion 13 | . . . 3 . . 10 Utility 5 | . . . 1 . . 4 Weapon 6 | . . . 1 . . 5 Highest Loss Streak 19 | . . . 5 . . 19 To Critical Strikes . | . . . . . . . Average Slot Usage (%) 93 | . 86 85 90 99 99 95 Engine 8 | . 14 10 12 4 6 1 Core 7 | . . . 3 10 12 17 Treads 8 | . 28 22 9 . . . Leg 18 | . . . 10 29 33 31 Device 10 | . 1 11 12 14 13 6 Storage 9 | . 14 11 11 7 6 6 Processor 7 | . . 9 9 7 6 8 Hackware 1 | . . . . . 4 4 Protection 3 | . . . 2 7 1 4 Energy Gun 6 | . 21 . 9 4 . . Ballistic Gun 5 | . . . 5 7 6 10 Ballistic Cannon 2 | . 5 14 1 . . . Impact Weapon 1 | . . 7 2 . . . Piercing Weapon 1 | . . . . 1 6 1 Naked Turns . | . . . . . . . Heaviest Build 68 | 14 18 22 68 53 54 63 Greatest Support 75 | 40 40 40 60 50 70 75 Greatest Overweight (x) 7 | . . . 3 1 . 7 Average Overweight (x) . | . . . . . . . Largest Inventory Capacity 15 | 8 8 8 15 15 15 15 Average Capacity 12 | 5 8 8 11 15 15 15 Most Carried 15 | 6 8 8 15 15 15 15 Average Carried 11 | 3 7 7 11 14 14 14 Final Capacity 15 | 8 8 8 15 15 15 15 Final Carried 15 | 6 8 8 15 15 15 11 Class Distribution -------------------- 55% | Scavenger-Mutant 44% | Mutant Dominant Class ---------------- Mutant | -10/Materials Mutant | -9/Materials Mutant | -8/Materials Scavenger-Mutant | -7/Factory Scavenger-Mutant | -6/Factory Scavenger-Mutant | -6/Extension Resources | -11 -10 -9 -8 -7 -6 -6 ----------- Run | Scr Mat Mat Mat Fac Fac Ext Matter Collected 1675 | 237 39 89 481 342 74 413 Remotely . | . . . . . . . Salvage Created 1953 | 53 199 152 641 361 32 515 Parts 107 | 11 17 5 32 18 2 22 Haulers Intercepted 3 | . . . . 1 . 2 Recyclers Shooed 1 | . . . . . . 1 Parts Field Recycled . | . . . . . . . Retrieved Matter . | . . . . . . . Parts Self-Destructed . | . . . . . . . Prevented . | . . . . . . . Kills | -11 -10 -9 -8 -7 -6 -6 ------- Run | Scr Mat Mat Mat Fac Fac Ext Combat Hostiles Destroyed 34 | . 6 3 15 6 . 4 Melee 3 | . . 1 2 . . . Guns 27 | . 6 . 12 6 . 3 Cannons 2 | . . 1 . . . 1 Classes Destroyed 13 | 1 4 2 2 2 . 2 Worker 2 | . . . 2 . . . Builder 1 | . . 1 . . . . Tunneler 4 | 3 . 1 . . . . Hauler 3 | . . . . 1 . 2 Recycler 1 | . . . . . . 1 Operator 1 | . 1 . . . . . Watcher 4 | . 1 1 . 1 1 . Swarmer 8 | . 3 . 4 . . 1 Grunt 12 | . 3 1 5 3 . . Sentry 7 | . . 2 4 1 . . Hunter 3 | . . . 2 1 . . Programmer 3 | . . . . 1 . 2 Behemoth 1 | . . . . . . 1 Best Kill Streak 5 | 1 3 1 5 3 1 2 Combat Bots Only 5 | . 3 1 5 3 . 1 Max Kills in Single Turn 2 | 1 2 1 1 1 1 1 Gunslinging 1 | . 1 . . . . . Exploded . | . . . . . . . Melee 1 | . . 1 1 . . . Uniques/NPCs Destroyed . | . . . . . . . Combat | -11 -10 -9 -8 -7 -6 -6 -------- Run | Scr Mat Mat Mat Fac Fac Ext Damage Taken 5539 | . 195 255 1351 546 . 3192 Core 1136 | . 32 47 149 53 . 855 Absorbed by Shields . | . . . . . . . Core Remaining (%) 87 | 100 87 88 72 92 . . Volleys Fired 143 | 13 23 4 46 18 2 37 Largest 2 | 2 2 2 2 2 1 2 Hottest 126 | 100 100 70 126 108 28 63 Shots Fired 261 | 26 39 8 79 35 2 72 Gun 247 | 26 37 . 76 35 2 71 Cannon 14 | . 2 8 3 . . 1 Launcher . | . . . . . . . Special . | . . . . . . . Kinetic 128 | . 2 8 27 18 2 71 Thermal 133 | 26 37 . 52 17 . 1 Explosive . | . . . . . . . Electromagnetic . | . . . . . . . Robot Hit Streak 14 | 4 6 4 14 10 4 9 Robot Miss Streak 5 | 3 5 . 5 2 1 2 Penetration Max 1 | . . . 1 . . 1 Secondary Targets 2 | . 1 . 1 . . . Max Gunslinging Chain 1 | . 1 . 1 . . . Shots Hit Robots 186 | 13 21 16 52 30 2 52 Core Hits 85 | 3 11 2 27 20 1 21 Critical Kills . | . . . . . . . Critical Parts Destroyed 6 | . . 4 1 . . 1 Critical Strikes 9 | 2 1 4 1 . . 1 Burn 3 | 2 1 . . . . . Destroy 1 | . . . . . . 1 Smash 5 | . . 4 1 . . . Melee Attacks 49 | . . 17 13 13 6 . Impact 35 | . . 17 13 5 . . Slashing . | . . . . . . . Piercing 14 | . . . . 8 6 . Sneak Attacks 5 | . . 2 1 1 1 . Combat Hostiles . | . . . . . . . Follow-up Attacks . | . . . . . . . Damage Inflicted 4181 | 164 293 537 1207 681 70 1229 Guns 3152 | 164 274 . 883 608 23 1200 Cannons 142 | . 17 39 57 . . 29 Explosions . | . . . . . . . Melee 866 | . . 498 248 73 47 . Ramming 21 | . 2 . 19 . . . Kinetic 1867 | . 17 39 354 222 23 1212 Thermal 1427 | 164 274 . 586 386 . 17 Explosive . | . . . . . . . Electromagnetic . | . . . . . . . Impact 746 | . . 498 248 . . . Slashing . | . . . . . . . Piercing 120 | . . . . 73 47 . Highest Corruption . | . . . . . . . Average Corruption . | . . . . . . . Corruption Purged . | . . . . . . . Corruption Blocked . | . . . . . . . Overload Shots . | . . . . . . . Overflow Damage 308 | . . 256 45 . 7 . Projectiles . | . . . . . . . Explosions . | . . . . . . . Melee 308 | . . 256 45 . 7 . Knockbacks 2 | . . 1 1 . . . Impact 2 | . . 1 1 . . . Kinetic . | . . . . . . . Secondary . | . . . . . . . Self-Inflicted Damage . | . . . . . . . Shots . | . . . . . . . Rammed 9 | . 2 . 7 . . . Targets Rammed 9 | . 2 . 7 . . . Kicked . | . . . . . . . Crushed . | . . . . . . . Highest Temperature 395 | 117 391 9 395 74 . 224 Average Temperature 101 | 44 144 4 137 29 . 82 Received Heat Transfer 1050 | . 78 72 378 150 . 372 Effects 6 | . 2 . 4 . . . Shutdowns 1 | . . . 1 . . . Energy Bleed 1 | . 1 . . . . . Interference 4 | . 1 . 3 . . . Siege Activations . | . . . . . . . Robots Corrupted . | . . . . . . . Combat Hostiles . | . . . . . . . Parts Fried 10 | . . 8 2 . . . Impact Corruptions 12 | . . 11 1 . . . Robots Melted . | . . . . . . . Combat Hostiles . | . . . . . . . Parts Melted 6 | 1 2 . 1 2 . . Heat Transferred 3563 | 629 888 . 1147 862 . 37 Parts Sabotaged . | . . . . . . . Parts Stolen . | . . . . . . . Parts Stripped . | . . . . . . . Power Chain Reactions . | . . . . . . . Missiles Intercepted . | . . . . . . . Alert | -11 -10 -9 -8 -7 -6 -6 ------- Run | Scr Mat Mat Mat Fac Fac Ext Peak Influence 331 | 15 186 118 331 256 24 71 Initial 95 | . 9 8 20 95 7 11 Average 87 | 7 100 46 154 105 10 23 Maximum Alert Level 1 | . . . 1 1 . . Low Security (%) 84 | 100 100 100 56 88 100 100 Level 1 15 | . . . 43 11 . . Level 2 . | . . . . . . . Level 3 . | . . . . . . . Level 4 . | . . . . . . . Level 5 . | . . . . . . . High Security . | . . . . . . . Max Security . | . . . . . . . Squads Dispatched 16 | . 2 1 5 5 3 . Investigation 7 | . . . 3 3 1 . Extermination 1 | . . . . 1 . . Reinforcement 8 | . 2 1 2 1 2 . Assault . | . . . . . . . Garrison . | . . . . . . . Intercept . | . . . . . . . Searches Triggered . | . . . . . . . Construction Impeded . | . . . . . . . Haulers Reinforced . | . . . . . . . Active Scanning Responses . | . . . . . . . Cargo Convoy Interrupts . | . . . . . . . Stealth | -11 -10 -9 -8 -7 -6 -6 --------- Run | Scr Mat Mat Mat Fac Fac Ext Distress Signals 4 | . 1 1 1 1 . . Communications Jammed . | . . . . . . . Distress Signals . | . . . . . . . Times Spotted 71 | . 16 5 24 13 2 11 Peak Tracking Total 7 | . 4 1 5 3 1 7 Tactical Retreats 6 | . 1 . 2 3 . . Traps | -11 -10 -9 -8 -7 -6 -6 ------- Run | Scr Mat Mat Mat Fac Fac Ext Traps Triggered 1 | . . . . . 1 . Indirectly . | . . . . . . . Trap Hack Attempts . | . . . . . . . Triggered . | . . . . . . . Disarmed . | . . . . . . . Reprogrammed 6 | . . . 6 . . . Reused 1 | . . . 1 . . . Traps Extracted . | . . . . . . . Installed . | . . . . . . . Triggered 1 | . . . 1 . . . Machines | -11 -10 -9 -8 -7 -6 -6 ---------- Run | Scr Mat Mat Mat Fac Fac Ext Machines Disabled . | . . . . . . . Max in Single Turn . | . . . . . . . Machines Sabotaged . | . . . . . . . Garrisons Compromised . | . . . . . . . Overloaded Fab Kills . | . . . . . . . Hacking | -11 -10 -9 -8 -7 -6 -6 --------- Run | Scr Mat Mat Mat Fac Fac Ext Machines Accessed 18 | . 3 1 4 7 3 . Terminals 10 | . 3 . 3 3 1 . Fabricators 5 | . . . . 3 2 . Repair Stations . | . . . . . . . Recycling Units 1 | . . 1 . . . . Scanalyzers 2 | . . . 1 1 . . Garrison Access . | . . . . . . . Total Hacks 53 | . 7 5 20 17 4 . Successful 38 | . 4 2 18 11 3 . Failed 15 | . 3 3 2 6 1 . Catastrophic . | . . . . . . . Database Lockouts . | . . . . . . . Manual 20 | . 7 5 4 3 1 . Terminals 26 | . 7 . 13 5 1 . Fabricators 10 | . . . . 7 3 . Repair Stations . | . . . . . . . Recycling Units 5 | . . 5 . . . . Scanalyzers 12 | . . . 7 5 . . Garrison Access . | . . . . . . . Terminal Hacks 10 | . . . 8 1 1 . Record 2 | . . . 2 . . . Prototype ID Bank 1 | . . . 1 . . . Open Door 1 | . . . . . 1 . Open DSF 1 | . . . . 1 . . Emergency Access Points 1 | . . . 1 . . . Alert Level 1 | . . . 1 . . . Locate Traps 1 | . . . 1 . . . Reprogram Traps 1 | . . . 1 . . . Hauler Manifests 1 | . . . 1 . . . Fabricator Hacks 6 | . . . . 4 2 . Load Schematic 3 | . . . . 2 1 . Build 3 | . . . . 2 1 . Repair Station Hacks . | . . . . . . . Recycling Unit Hacks 1 | . . 1 . . . . Report Inventory 1 | . . 1 . . . . Scanalyzer 11 | . . . 7 4 . . Insert Component 5 | . . . 3 2 . . Analyze 6 | . . . 4 2 . . Garrison Access Hacks . | . . . . . . . Unauthorized Hacks 10 | . 4 1 3 2 . . Terminals 9 | . 4 . 3 2 . . Track 2 | . 2 . . . . . Botnet 7 | . 2 . 3 2 . . Fabricators . | . . . . . . . Repair Stations . | . . . . . . . Recycling Units 1 | . . 1 . . . . Mask 1 | . . 1 . . . . Scanalyzers . | . . . . . . . Garrison Access . | . . . . . . . Data Cores Recovered . | . . . . . . . Used . | . . . . . . . Hacking Detections 15 | . 3 1 4 5 2 . Full Trace Events 6 | . . . 2 3 1 . Feedback Events . | . . . . . . . Feedback Blocked . | . . . . . . . Robot Schematics Acquired . | . . . . . . . Robots Built . | . . . . . . . Authchips . | . . . . . . . Time . | . . . . . . . Total Robot Build Rating . | . . . . . . . Part Schematics Acquired 4 | . . . 3 1 . . Parts Built 6 | . . . . 4 2 . Authchips . | . . . . . . . Time 145 | . . . . 109 36 . Total Part Build Rating 18 | . . . . 12 6 . Parts Repaired . | . . . . . . . Time . | . . . . . . . Parts Recycled . | . . . . . . . Recycled Matter . | . . . . . . . Retrieved Matter . | . . . . . . . Retrieved Components . | . . . . . . . Parts Scanalyzed 4 | . . . 3 1 . . Part Schematics Acquired 4 | . . . 3 1 . . Parts Damaged . | . . . . . . . Bothacking | -11 -10 -9 -8 -7 -6 -6 ------------ Run | Scr Mat Mat Mat Fac Fac Ext Used RIF Installer . | . . . . . . . Robots Hacked . | . . . . . . . Non-combat . | . . . . . . . Combat . | . . . . . . . Robot Hacks Applied . | . . . . . . . Relay Couplers Released . | . . . . . . . Fabnet Peak Effective % . | . . . . . . . Robots Rewired . | . . . . . . . Allies Hacked . | . . . . . . . Hacks Repelled . | . . . . . . . Allies | -11 -10 -9 -8 -7 -6 -6 -------- Run | Scr Mat Mat Mat Fac Fac Ext Total Allies . | . . . . . . . Largest Group . | . . . . . . . Highest-Rated Group . | . . . . . . . Highest-Rated Ally . | . . . . . . . Total Orders . | . . . . . . . Ally Attacks . | . . . . . . . Total Damage . | . . . . . . . Kills . | . . . . . . . Allies Corrupted . | . . . . . . . Allies Melted . | . . . . . . . Intel | -11 -10 -9 -8 -7 -6 -6 ------- Run | Scr Mat Mat Mat Fac Fac Ext Robot Analysis Total . | . . . . . . . Derelict Logs Recovered . | . . . . . . . Drone Launches . | . . . . . . . Drone Recoveries . | . . . . . . . Exploration | -11 -10 -9 -8 -7 -6 -6 ------------- Run | Scr Mat Mat Mat Fac Fac Ext Turns Passed 5341 | 308 491 619 1515 1258 514 636 Spaces Moved 2880 | 167 260 330 617 827 399 280 Core 13 | 11 . . . . . 2 Treads 1096 | 156 260 330 350 . . . Legs 1764 | . . . 267 827 399 271 Wheels 7 | . . . . . . 7 Hover . | . . . . . . . Flight . | . . . . . . . Fastest Speed 50 | 50 160 160 160 120 120 90 Average Speed 147 | 152 160 160 187 130 120 122 Slowest Speed 400 | 160 160 160 330 190 120 400 Overloaded Moves . | . . . . . . . Propulsion Burnouts . | . . . . . . . Robots Hopped . | . . . . . . . Cave-ins Triggered . | . . . . . . . Exploration Rate (%) 21 | 6 43 19 35 17 7 24 Regions Visited 6 Branch Regions 1 Pre-discovered Areas . | . . . . . . . Known Exits Taken . | . . . . . . . Unknown Exits Taken 6 | 1 1 1 1 1 1 . Scrap Searched . | . . . . . . . Spaces Dug 16 | . . 1 5 7 3 . Terrain Destroyed 16 | . . 1 5 7 3 . Melee 16 | . . 1 5 7 3 . Projectile . | . . . . . . . AOE . | . . . . . . . Terrain Rammed . | . . . . . . . Walls Destroyed . | . . . . . . . Machines Disabled . | . . . . . . . Actions | -11 -10 -9 -8 -7 -6 -6 --------- Run | Scr Mat Mat Mat Fac Fac Ext Total 3590 | 192 294 380 860 940 424 500 Wait 308 | . 3 16 98 35 . 156 Move 2874 | 166 259 329 616 826 398 280 Hop . | . . . . . . . Pick Up 40 | 7 2 5 16 6 3 1 Fast Attach 33 | 5 3 1 11 4 2 7 Attach 18 | 1 . 1 5 4 1 6 Detach 5 | . . . 2 3 . . Swap 63 | . . 2 28 19 4 10 Drop 45 | . 2 5 18 12 5 3 Fire 143 | 13 23 4 46 18 2 37 Melee 49 | . . 17 13 13 6 . Ram . | . . . . . . . Kick . | . . . . . . . Crush 9 | . 2 . 7 . . . Escape Stasis 3 | . . . . . 3 . Rewire . | . . . . . . . Trap . | . . . . . . . Miscellaneous . | . . . . . . . Route ------- -11/Scrapyard -10/Materials -9/Materials -8/Materials -7/Factory (discovered 2 exits: *Fac / [*Sto]) -6/Factory -6/Extension History --------- Turn | Location | Event 11 | -11/Scrapyard | Discovered new exit (range 13) 309 | -11/Scrapyard | Entered Materials 310 | -10/Materials | Build established: Mutant 609 | -10/Materials | Discovered new exit (range 8) 800 | -10/Materials | Entered another Materials area 800 | -9/Materials | Evolved 2 slots: Propulsion x1, Utility x1 1028 | -9/Materials | Discovered new exit (range 9) 1419 | -9/Materials | Entered another Materials area 1419 | -8/Materials | Evolved 2 slots: Power x1, Utility x1 2134 | -8/Materials | Discovered new exit (range 6) 2284 | -8/Materials | Lost 5 parts (2p2n1w) 2834 | -8/Materials | Build established: Scavenger-Mutant 2934 | -8/Materials | Entered Factory 2934 | -7/Factory | Evolved 2 slots: Propulsion x1, Utility x1 3060 | -7/Factory | Fabricated Carbon-fiber Leg (x2) 3987 | -7/Factory | Discovered new exit (range 15) 4160 | -7/Factory | Fabricated Carbon-fiber Leg? 4162 | -7/Factory | Discovered new exit (range 5) 4192 | -7/Factory | Entered another Factory area 4192 | -6/Factory | Evolved 2 slots: Power x1, Propulsion x1 4351 | -6/Factory | Fabricated Carbon-fiber Leg? 4695 | -6/Factory | Discovered new exit (range 5) 4706 | -6/Factory | Entered Extension 5206 | -6/Extension | Disrupted transfer network 5217 | -6/Extension | Spotted B-75 Beast 5269 | -6/Extension | Destroyed B-75 Beast 5293 | -6/Extension | Lost 3 parts (1n2u) 5296 | -6/Extension | Spotted B-75 Beast 5321 | -6/Extension | Core integrity fell below 50% 5333 | -6/Extension | Core integrity fell below 20% 5342 | -6/Extension | Destroyed by S-27 Virus with Autogun Last Messages --------------- 05310_ Carbon-fiber Leg destroyed. 05310_ Mic. Nuclear Core destroyed. 05312_ S-27 Virus destroyed. 05312_ Magnetic Acceleration Cannon destroyed. 05313_ Mic. Nuclear Core destroyed. 05313_ Imp. Cooling System destroyed. 05316_ Acquired 5 matter. 05319_ Carbon-fiber Leg destroyed. 05323_ Carbon-fiber Leg blasted off. 05324_ Acquired Com. Wheel. 05326_ Hvy. Laser destroyed. 05328_ Acquired 43 matter. 05328_ R-10 Processor destroyed. 05330_ Acquired Wheel. 05333_ Acquired Com. Wheel. 05337_ Acquired 3 matter. 05337_ Com. Wheel destroyed. 05337_ Wheel destroyed. 05337_ Com. Wheel destroyed. 05340_ Pulse Rifle destroyed. Map ----- +----------------------------------------------------+ | ?????????????????????????????????????????????????? | | ?????????????????????????????????????????????????? | | ?????????????????????????????????????????????????? | | ?????????????????????????????????????????????????? | | ?????????????????????????????????????????????????? | | ?????????????????????????????????????????????????? | | ?????????????????????????????????????????????????? | | ?????????????????????????????????????????????????? | | ?????????????????????????????????????????????????? | | ?????????????????????????????????????????????????? | | ????#????????????????????????????????????????????? | | ???????#??#??????????????????????????????????????? | | #????#???#???##??????????????????????????????????? | | ???????#????##????????????????????????????#??????? | | #???????##?#??????#?????????????????????? #??????? | | ?##??#??#?##?##?##?#????????????????????? #??????? | | #??##???#?####?##?#??#??????????????????? #??##??# | | ##???##?##?###?##?#?#?#???????????????### ### ## # | | ??###???###?##?###??##????????????????#"" "" | | ?##?##?###??#??#??#??##???????????????# " " | | ?#?###?#?####?#?####??###?????????????# | | ???#####?##?#####????#??##???????##???# | | ####################################### | | ^ % Y | | !! %Y! = [ "%" | | =! ^ % %@% !! %! s !%! %* " | | ! %=! % s !| = | | t*^ %*%=u* = R R % %= | | ##########+#####+###################### ! | | ##?####??#!#### ##?#?#?#????????????# | | ?##?#?#?##= ##??????????????????# | | ???###???###### #?###?#?????????????? | | ??#####?##?#?#######??##??????????????? | | ?#?#?#??#?##??###?#??###??#????????????#####T#"""# | | #####?#??###??##?????####?#?????????????????##???? | | #?##?#???#??#???##???#????#??????????????????????? | | | | | | | | | | | | | | | | | | | | | | | | | | | | | +----------------------------------------------------+ Best States ------------- Heat Dissipation 64 Energy Generation 35 Energy Capacity 440 Matter Stores 300 Matter Capacity 300 Sight Range 16 Terrain Scan Range 16 Terrain Scan Density 85 ECM Strength 2 Armor Coverage 450 Resistance: EM 15 Evasion (%) 55 Core Analysis 6 Recoil Reduction 3 Offensive Hacking 12 Item Schematics ----------------- ECM Suite | -8/Materials | Scanalyzed Imp. Heat Sink | -8/Materials | Scanalyzed Pulse Rifle | -8/Materials | Scanalyzed Carbon-fiber Leg | -7/Factory | Scanalyzed Robot Schematics ------------------ None Fabricated ------------ Carbon-fiber Leg | x2 | -7/Factory Carbon-fiber Leg | x2 | -7/Factory Carbon-fiber Leg | x2 | -6/Factory Alien Tech Used ----------------- None Achievements -------------- None Challenges ------------ None Game ------ Seed ThrusterPoweredWeb Manual? 0 Play Time 01:09:56 Cumulative 175.6 hours Start 2022.03.20 @ 19:06:37 End 2022.03.26 @ 12:13:07 Sessions 5 Manual Loads 0 Difficulty Rogue Special Mode None Game No. 122 Rogue 122 Adventurer 0 Explorer 0 Win Type - Total 0 Types 0/0/0/0/0/0/0/0/0 Lore% 40 Gallery% 56 Achievement% 43 Wizard Run 0 Options --------- ASCII 0 Keyboard 1 Movement Numpad Keybinds 0 Fullscreen 1 Font 14/Terminus Map View 72x54 Tactical HUD 1 Map Filters NONE Filters NONE Steam 1 RUN: 3ff893b6-29e1-4ad4-9bb0-96c6fee49dc2